bitfinex/quotes_BTCUSD_20250719
["timestamp","ask_amount","ask_price","bid_price","bid_amount"]
[1752929598135,0.003,118210.0,118200.0,0.57089124]
[1752929598342,0.003,118210.0,118200.0,0.59472538]
[1752929598568,0.003,118210.0,118200.0,0.26180028]
[1752929598776,0.002,118210.0,118200.0,0.57089124]
[1752929598985,0.01045894,118210.0,118200.0,0.41634576]
[1752929599192,0.01045894,118210.0,118200.0,0.41734576]
[1752929599193,0.01045887,118210.0,118200.0,0.41734576]
[1752929599985,0.002,118210.0,118200.0,0.41734576]
[1752929600189,0.34959685,118220.0,118200.0,0.41734576]
[1752929600406,0.17196096,118220.0,118200.0,0.41734576]
[1752929600618,0.00845887,118210.0,118200.0,0.41734576]
[1752929601028,0.00845887,118210.0,118200.0,0.41634576]
[1752929601498,0.00845887,118210.0,118200.0,0.41734576]
[1752929601730,0.00845887,118210.0,118200.0,0.26380028]
[1752929601944,0.03383656,118210.0,118200.0,0.41734576]
[1752929602146,0.03383656,118210.0,118200.0,0.41798576]
[1752929602372,0.02537712,118210.0,118200.0,0.41898576]
[1752929602587,0.02537712,118210.0,118200.0,0.41902576]
[1752929603730,0.03383649,118210.0,118200.0,0.41902576]
[1752929604324,0.03383649,118210.0,118200.0,0.28890576]
[1752929604534,0.03383649,118210.0,118200.0,0.41898576]
[1752929604743,0.03383649,118210.0,118200.0,0.28890576]
[1752929604951,0.03383649,118210.0,118200.0,0.41894576]
[1752929605426,0.03383649,118210.0,118200.0,0.28890576]
[1752929605650,0.02537712,118210.0,118200.0,0.13436028]
[1752929605900,0.03383649,118210.0,118200.0,0.26440028]
[1752929606949,0.02537712,118210.0,118200.0,0.41894576]
[1752929607561,0.02537705,118210.0,118200.0,0.41894576]
[1752929607988,0.03383635,118210.0,118200.0,0.41894576]
[1752929608402,0.03383635,118210.0,118200.0,0.28890576]
[1752929608618,0.03383635,118210.0,118200.0,0.41890576]
[1752929608832,0.02537705,118210.0,118200.0,0.41890576]
[1752929610643,0.02537705,118210.0,118200.0,0.26436028]
[1752929610850,0.02537705,118210.0,118200.0,0.41890576]
[1752929611058,0.01691789,118210.0,118200.0,0.41890576]
[1752929611266,0.02537698,118210.0,118200.0,0.41890576]
[1752929612430,0.03383621,118210.0,118200.0,0.41890576]
[1752929613687,0.02537698,118210.0,118200.0,0.41890576]
[1752929614314,0.03383621,118210.0,118200.0,0.41890576]
[1752929615454,0.02537698,118210.0,118200.0,0.41890576]
[1752929615702,0.03383621,118210.0,118200.0,0.38720576]
[1752929616149,0.04229558,118210.0,118200.0,0.38720576]
[1752929616363,0.04229551,118210.0,118200.0,0.38401576]
[1752929616570,0.04229551,118210.0,118200.0,0.22947028]
[1752929617206,0.03383621,118210.0,118200.0,0.22947028]
[1752929617655,0.03383621,118210.0,118200.0,0.38401576]
[1752929617864,0.03383628,118210.0,118200.0,0.38401576]
[1752929618074,0.03383628,118210.0,118200.0,0.22947028]
[1752929618274,0.03383628,118210.0,118200.0,0.38401576]
[1752929618483,0.02537698,118210.0,118200.0,0.38401576]
[1752929618709,0.03383621,118210.0,118200.0,0.38401576]
[1752929619130,0.03383614,118210.0,118200.0,0.38401576]
[1752929619839,0.03383614,118210.0,118200.0,0.22947028]
[1752929620045,0.04229544,118210.0,118200.0,0.38401576]
[1752929620254,0.03383614,118210.0,118200.0,0.38401576]
[1752929622098,0.04229544,118210.0,118200.0,0.38401576]
[1752929622681,0.03383614,118210.0,118200.0,0.38401576]
[1752929623729,0.04229544,118210.0,118200.0,0.38401576]
[1752929624150,0.04229537,118210.0,118200.0,0.38401576]
[1752929624575,0.0422958,118210.0,118200.0,0.38401576]
[1752929624776,0.0422958,118210.0,118200.0,0.22947028]
[1752929625081,0.0338365,118210.0,118200.0,0.22947028]
[1752929625382,0.37655457,118210.0,118200.0,0.09751028]
[1752929625597,0.37655457,118210.0,118200.0,0.22735028]
[1752929626454,0.23046853,118210.0,118200.0,0.22614974]
[1752929626673,0.39347353,118210.0,118200.0,0.22614974]
[1752929627500,0.21582359,118210.0,118200.0,0.22614974]
[1752929627719,0.00845887,118210.0,118200.0,0.39805522]
[1752929627933,0.20107446,118220.0,118200.0,0.76409117]
[1752929627934,0.00049831,118220.0,118200.0,0.76409117]
[1752929628141,0.01741491,118220.0,118210.0,0.24005576]
[1752929628580,0.00895654,118220.0,118210.0,0.24221576]
[1752929628819,0.01741491,118220.0,118210.0,0.24221576]
[1752929629241,0.02587342,118220.0,118210.0,0.24221576]
[1752929630131,0.01741491,118220.0,118210.0,0.24221576]
[1752929630344,0.00895654,118220.0,118210.0,0.24221576]
[1752929630770,0.01741491,118220.0,118210.0,0.24221576]
[1752929631217,0.00049831,118220.0,118210.0,0.24221576]
[1752929631406,0.00895654,118220.0,118210.0,0.08767028]
[1752929631615,0.00049831,118220.0,118210.0,0.24221576]
[1752929632452,0.00895647,118220.0,118210.0,0.24221576]
[1752929632680,0.00049831,118220.0,118210.0,0.24533576]
[1752929632891,0.00049831,118220.0,118210.0,0.26123576]
[1752929636987,0.00049831,118220.0,118210.0,0.27683576]
[1752929637194,0.00049831,118220.0,118210.0,0.43042618]
[1752929637408,0.00049831,118220.0,118210.0,0.44602618]
[1752929639502,0.00049831,118220.0,118210.0,0.2914807]
[1752929639722,0.00049831,118220.0,118210.0,0.44602618]
[1752929640230,0.00049831,118220.0,118210.0,0.12229028]
[1752929640425,0.00049831,118220.0,118210.0,0.10880516]
[1752929640636,0.00049831,118220.0,118210.0,0.26335064]
[1752929640835,0.00049831,118220.0,118210.0,0.26123576]
[1752929641452,0.00049831,118220.0,118210.0,0.43042618]
[1752929641676,0.00049831,118220.0,118210.0,0.2758807]
[1752929641918,0.00049831,118220.0,118210.0,0.26123576]
[1752929642201,0.00049831,118220.0,118210.0,0.46036703]
[1752929642843,0.00049831,118220.0,118210.0,0.79874703]
[1752929643524,0.00049831,118220.0,118210.0,1.13874703]
[1752929644095,0.23955114,118240.0,118210.0,1.13874703]
[1752929644302,0.2227859,118240.0,118230.0,0.08551028]
[1752929644496,0.2332132,118240.0,118230.0,0.42383028]
[1752929644704,0.40236069,118240.0,118230.0,0.42383028]
[1752929645474,0.24167057,118240.0,118230.0,0.42383028]
[1752929646069,0.24667057,118240.0,118230.0,0.42383028]
[1752929646279,0.2382132,118240.0,118230.0,0.42383028]
[1752929646463,0.40736069,118240.0,118230.0,0.42383028]
[1752929646666,0.41581806,118240.0,118230.0,0.42383028]
[1752929646866,0.2382132,118240.0,118230.0,0.42383028]
[1752929648464,0.40736069,118240.0,118230.0,0.42383028]
[1752929648680,0.23821313,118240.0,118230.0,0.42383028]
[1752929648881,0.2466705,118240.0,118230.0,0.42383028]
[1752929649102,0.40736119,118240.0,118230.0,0.42383028]
[1752929649648,0.07521085,118240.0,118230.0,0.42383028]
[1752929649846,0.22975633,118240.0,118230.0,0.42383028]
[1752929650898,0.2382137,118240.0,118230.0,0.42383028]
[1752929651150,0.22975633,118240.0,118230.0,0.42383028]
[1752929651374,0.23821363,118240.0,118230.0,0.42383028]
[1752929652925,0.41581849,118240.0,118230.0,0.42383028]
[1752929653410,0.23821363,118240.0,118230.0,0.42383028]
[1752929654002,0.40736112,118240.0,118230.0,0.42383028]
[1752929654576,0.41581849,118240.0,118230.0,0.42383028]
[1752929655054,0.0408705,118240.0,118230.0,0.42590028]
[1752929655263,0.19541598,118240.0,118230.0,0.42590028]
[1752929655555,0.1984559,118240.0,118230.0,0.42590028]
[1752929655852,0.18999882,118240.0,118230.0,0.42590028]
[1752929656263,0.1984559,118240.0,118230.0,0.42590028]
[1752929656482,0.00715943,118240.0,118230.0,0.42590028]
[1752929656715,0.00715943,118240.0,118230.0,0.58044576]
[1752929656716,0.0221031,118240.0,118230.0,0.58044576]
[1752929656916,0.0221031,118240.0,118230.0,0.42590028]
[1752929657325,0.02210303,118240.0,118230.0,0.42590028]
[1752929658293,0.03055997,118240.0,118230.0,0.58044576]
[1752929658503,0.0305599,118240.0,118230.0,0.58044576]
[1752929658745,0.02210296,118240.0,118230.0,0.58044576]
[1752929659242,0.03055983,118240.0,118230.0,0.58044576]
[1752929659454,0.02210296,118240.0,118230.0,0.58044576]
[1752929660558,0.03055997,118240.0,118230.0,0.42590028]
[1752929660947,0.03901713,118240.0,118230.0,0.42590028]
[1752929661184,0.03055997,118240.0,118230.0,0.42590028]
[1752929662034,0.02210296,118240.0,118230.0,0.42590028]
[1752929662250,0.0305599,118240.0,118230.0,0.42590028]
[1752929664199,0.02971417,118240.0,118230.0,0.42590028]
[1752929664831,0.04662834,118240.0,118230.0,0.42590028]
[1752929665056,0.04662884,118240.0,118230.0,0.42590028]
[1752929665677,0.04662891,118240.0,118230.0,0.42590028]
[1752929665887,0.03817161,118240.0,118230.0,0.42590028]
[1752929666094,0.19271709,118240.0,118230.0,0.42590028]
[1752929668095,0.36186537,118240.0,118230.0,0.42590028]
[1752929668344,0.36393537,118240.0,118230.0,0.42590028]
[1752929668523,0.19478788,118240.0,118230.0,0.42590028]
[1752929668747,0.19781788,118240.0,118230.0,0.42590028]
[1752929668967,0.38256537,118240.0,118230.0,0.42590028]
[1752929669180,0.3822512,118240.0,118230.0,0.42590028]
[1752929671499,0.22770572,118240.0,118230.0,0.42590028]
[1752929671716,0.3822512,118240.0,118230.0,0.42590028]
[1752929672514,0.39070857,118240.0,118230.0,0.42590028]
[1752929673138,0.21310371,118240.0,118230.0,0.42590028]
[1752929674159,0.3822512,118240.0,118230.0,0.42590028]
[1752929674524,0.22770572,118240.0,118230.0,0.42590028]
[1752929674727,0.3822512,118240.0,118230.0,0.42590028]
[1752929677127,0.22770572,118240.0,118230.0,0.42590028]
[1752929677328,0.3822512,118240.0,118230.0,0.42590028]
[1752929677916,0.39070857,118240.0,118230.0,0.42590028]
[1752929678118,0.21310371,118240.0,118230.0,0.42590028]
[1752929678504,0.3822512,118240.0,118230.0,0.42590028]
[1752929678912,0.39070857,118240.0,118230.0,0.42590028]
[1752929679678,0.21310371,118240.0,118230.0,0.42590028]
[1752929680283,0.3822512,118240.0,118230.0,0.42590028]
[1752929681869,0.05855794,118240.0,118230.0,0.42590028]
[1752929682075,0.39070828,118240.0,118230.0,0.42590028]
[1752929683821,0.04195794,118240.0,118230.0,0.42590028]
[1752929684034,0.19650342,118240.0,118230.0,0.42590028]
[1752929684656,0.20496079,118240.0,118230.0,0.42590028]
[1752929685829,0.19650342,118240.0,118230.0,0.42590028]
[1752929686300,0.04195794,118240.0,118230.0,0.42590028]
[1752929686510,0.19650342,118240.0,118230.0,0.42590028]
[1752929686723,0.20496079,118240.0,118230.0,0.42590028]
[1752929686934,0.20496072,118240.0,118230.0,0.42590028]
[1752929687945,0.04195794,118240.0,118230.0,0.42590028]
[1752929688158,0.19650342,118240.0,118230.0,0.42590028]
[1752929688336,0.04195794,118240.0,118230.0,0.42590028]
[1752929688537,0.19650342,118240.0,118230.0,0.42590028]
[1752929688955,0.0148705,118240.0,118230.0,0.42590028]
[1752929689165,0.17580292,118240.0,118230.0,0.42590028]
[1752929689942,0.18425993,118240.0,118230.0,0.42590028]
[1752929690164,0.17580292,118240.0,118230.0,0.42590028]
[1752929690364,0.17580292,118240.0,118230.0,0.42383028]
[1752929690365,0.54491376,118240.0,118230.0,0.42383028]
[1752929690583,0.53645668,118240.0,118230.0,0.55327028]
[1752929690997,0.53645668,118240.0,118230.0,0.42383028]
[1752929691175,0.53645668,118240.0,118230.0,0.55327028]
[1752929693466,0.22736572,118240.0,118230.0,0.55327028]
[1752929693672,0.53645668,118240.0,118230.0,0.55327028]
[1752929694269,0.22736572,118240.0,118230.0,0.55327028]
[1752929694466,0.53645668,118240.0,118230.0,0.55327028]
[1752929695843,0.22736572,118240.0,118230.0,0.55327028]
[1752929696063,0.3819112,118240.0,118230.0,0.55327028]
[1752929698389,0.22736572,118240.0,118230.0,0.55327028]
[1752929698625,0.3819112,118240.0,118230.0,0.55327028]
[1752929699456,0.04251823,118240.0,118230.0,0.55327028]
[1752929699716,0.19706371,118240.0,118230.0,0.55327028]
[1752929700347,0.0212573,118240.0,118230.0,0.55542028]
[1752929700564,0.18425979,118240.0,118230.0,0.55542028]
[1752929700779,0.17580278,118240.0,118230.0,0.55542028]
[1752929701211,0.0212573,118240.0,118230.0,0.55542028]
[1752929701447,0.02971424,118240.0,118230.0,0.55542028]
[1752929701695,0.0381714,118240.0,118230.0,0.55542028]
[1752929701937,0.03817132,118240.0,118230.0,0.55542028]
[1752929702191,0.20117403,118240.0,118230.0,0.55542028]
[1752929702420,0.18425972,118240.0,118230.0,0.55542028]
[1752929702846,0.02971424,118240.0,118230.0,0.55542028]
[1752929703070,0.18425972,118240.0,118230.0,0.55542028]
[1752929703278,0.1927168,118240.0,118230.0,0.55542028]
[1752929704309,0.20117396,118240.0,118230.0,0.55542028]
[1752929705549,0.18425972,118240.0,118230.0,0.55542028]
[1752929705794,0.1927168,118240.0,118230.0,0.55542028]
[1752929706505,0.20117403,118240.0,118230.0,0.55542028]
[1752929706945,0.37032216,118240.0,118230.0,0.55542028]
[1752929707159,0.52891383,118240.0,118230.0,0.55542028]
[1752929707379,0.54491383,118240.0,118230.0,0.55327028]
[1752929707793,0.53645675,118240.0,118230.0,0.55327028]
[1752929710717,0.38191127,118240.0,118230.0,0.55327028]
[1752929711357,0.53645675,118240.0,118230.0,0.55327028]
[1752929711658,0.22736579,118240.0,118230.0,0.55327028]
[1752929711889,0.38191127,118240.0,118230.0,0.55327028]
[1752929712665,0.36591127,118240.0,118230.0,0.55542028]
[1752929713757,0.36591127,118240.0,118230.0,0.55327028]
[1752929713953,0.36591127,118240.0,118230.0,0.42383028]
[1752929714178,0.36591127,118240.0,118230.0,0.55327028]
[1752929715035,0.38211127,118240.0,118230.0,0.55327028]
[1752929716274,0.37365404,118240.0,118230.0,0.55327028]
[1752929717487,0.21910856,118240.0,118230.0,0.55327028]
[1752929717695,0.20290856,118240.0,118230.0,0.55327028]
[1752929717918,0.35745404,118240.0,118230.0,0.55327028]
[1752929719679,0.35745404,118240.0,118230.0,0.55542028]
[1752929719899,0.51199952,118240.0,118230.0,0.55327028]
[1752929720124,0.52759952,118240.0,118230.0,0.55327028]
[1752929725420,0.37305404,118240.0,118230.0,0.55327028]
[1752929726185,0.35745404,118240.0,118230.0,0.55541028]
[1752929730166,0.35745404,118240.0,118230.0,0.55327028]
[1752929731877,0.20290856,118240.0,118230.0,0.55541028]
[1752929732032,0.35745404,118240.0,118230.0,0.55541028]
[1752929732721,0.20290856,118240.0,118230.0,0.55541028]
[1752929732906,0.35745404,118240.0,118230.0,0.55541028]
[1752929733327,0.20290856,118240.0,118230.0,0.55541028]
[1752929733529,0.35745404,118240.0,118230.0,0.55541028]
[1752929733767,0.0253037,118240.0,118230.0,0.55541028]
[1752929733979,0.01300765,118240.0,118230.0,0.71315576]
[1752929734192,0.17601036,118240.0,118230.0,0.55861028]
[1752929734440,0.16755306,118240.0,118230.0,0.55861028]
[1752929734650,0.01300758,118240.0,118230.0,0.55861028]
[1752929735074,0.16755306,118240.0,118230.0,0.55861028]
[1752929735284,0.15909605,118240.0,118230.0,0.55861028]
[1752929735488,0.16755306,118240.0,118230.0,0.55861028]
[1752929736113,0.15909605,118240.0,118230.0,0.55861028]
[1752929736329,0.00455057,118240.0,118230.0,0.55861028]
[1752929736537,0.15909605,118240.0,118230.0,0.55861028]
[1752929736770,0.16755306,118240.0,118230.0,0.55861028]
[1752929736998,0.15909605,118240.0,118230.0,0.55861028]
[1752929737198,0.00455057,118240.0,118230.0,0.55861028]
[1752929738152,0.01300765,118240.0,118230.0,0.55861028]
[1752929738363,0.16755313,118240.0,118230.0,0.55861028]
[1752929738789,0.15909605,118240.0,118230.0,0.55861028]
[1752929739441,0.00455057,118240.0,118230.0,0.55861028]
[1752929739654,0.15909605,118240.0,118230.0,0.55861028]
[1752929740092,0.15454548,118240.0,118230.0,0.55861028]
[1752929740311,0.00845673,118240.0,118230.0,0.58981028]
[1752929740527,0.17145915,118240.0,118230.0,0.58981028]
[1752929740738,0.17145908,118240.0,118230.0,0.58981028]
[1752929740948,0.17145908,118240.0,118230.0,0.57411028]
[1752929741158,0.0169136,118240.0,118230.0,0.57411028]
[1752929741380,0.17145908,118240.0,118230.0,0.57411028]
[1752929741968,0.17145908,118240.0,118230.0,0.55861028]
[1752929742956,0.17991609,118240.0,118230.0,0.55861028]
[1752929743173,0.17145908,118240.0,118230.0,0.42917028]
[1752929743372,0.17145908,118240.0,118230.0,0.55897028]
[1752929744498,0.17991616,118240.0,118230.0,0.55897028]
[1752929744709,0.18837339,118240.0,118230.0,0.55897028]
[1752929744922,0.18837332,118240.0,118230.0,0.55897028]
[1752929745132,0.19683062,118240.0,118230.0,0.55897028]
[1752929746230,0.34906451,118240.0,118230.0,0.55897028]
[1752929747507,0.51279291,118240.0,118230.0,0.55889028]
[1752929747710,0.52869291,118240.0,118230.0,0.55889028]
[1752929748545,0.35824743,118240.0,118230.0,0.55889028]
[1752929750342,0.36569027,118240.0,118230.0,0.55889028]
[1752929754309,0.34979027,118240.0,118230.0,0.55889028]
[1752929755307,0.19524479,118240.0,118230.0,0.55889028]
[1752929755508,0.34979027,118240.0,118230.0,0.55889028]
[1752929762307,0.34953489,118240.0,118230.0,0.55889028]
[1752929763015,0.19498941,118240.0,118230.0,0.55889028]
[1752929763146,0.34953489,118240.0,118230.0,0.55889028]
[1752929766107,0.19498941,118240.0,118230.0,0.55889028]
[1752929766281,0.34953489,118240.0,118230.0,0.55889028]
[1752929769177,0.34953489,118240.0,118230.0,0.42917028]
[1752929769386,0.34953489,118240.0,118230.0,0.55861028]
[1752929770431,0.19498941,118240.0,118230.0,0.55861028]
[1752929770641,0.34953489,118240.0,118230.0,0.55861028]
[1752929771923,0.34133297,118240.0,118230.0,0.55861028]
[1752929778176,0.49587845,118240.0,118230.0,0.55327028]
[1752929778385,0.51544845,118240.0,118230.0,0.55327028]
[1752929778851,0.51544845,118240.0,118230.0,0.42383028]
[1752929779081,0.66999393,118240.0,118230.0,0.55327028]
[1752929779292,0.51544845,118240.0,118230.0,0.55327028]
[1752929782198,0.51544845,118240.0,118230.0,0.42383028]
[1752929782462,0.51544845,118240.0,118230.0,0.55327028]
[1752929787349,0.51544845,118240.0,118230.0,0.42383028]
[1752929787555,0.51544845,118240.0,118230.0,0.55327028]
[1752929801441,0.51247845,118240.0,118230.0,0.55327028]
[1752929802896,0.20338749,118240.0,118230.0,0.55327028]
[1752929803104,0.51247845,118240.0,118230.0,0.55327028]
[1752929816161,0.51247845,118240.0,118230.0,0.55529028]
[1752929816577,0.20338749,118240.0,118230.0,0.55529028]
[1752929816827,0.51247845,118240.0,118230.0,0.55529028]
[1752929818836,0.47823845,118240.0,118230.0,0.55839028]
[1752929820285,0.16914749,118240.0,118230.0,0.55839028]
[1752929820519,0.47823845,118240.0,118230.0,0.55839028]
[1752929824553,0.51276845,118240.0,118230.0,0.55529028]
[1752929827570,0.51276845,118240.0,118230.0,0.55525028]
[1752929829648,0.51276845,118240.0,118230.0,0.55835028]
[1752929830810,0.51276845,118240.0,118230.0,0.55525028]
[1752929831242,0.66731393,118240.0,118230.0,0.55323028]
[1752929831454,0.20367749,118240.0,118230.0,0.55323028]
[1752929831688,0.51276845,118240.0,118230.0,0.55323028]
[1752929832536,0.51276845,118240.0,118230.0,0.55525028]
[1752929834340,0.51276845,118240.0,118230.0,0.55835028]
[1752929834849,0.51276845,118240.0,118230.0,0.55843028]
[1752929835635,0.49636845,118240.0,118230.0,0.55843028]
[1752929839351,0.49636845,118240.0,118230.0,0.55839028]
[1752929841870,0.51186845,118240.0,118230.0,0.55327028]
[1752929843031,0.51487845,118240.0,118230.0,0.55327028]
[1752929844749,0.20578749,118240.0,118230.0,0.55327028]
[1752929844959,0.51186845,118240.0,118230.0,0.55327028]
[1752929852493,0.20277749,118240.0,118230.0,0.55327028]
[1752929852699,0.51186845,118240.0,118230.0,0.55327028]
[1752929853427,0.20277749,118240.0,118230.0,0.55327028]
[1752929853632,0.51186845,118240.0,118230.0,0.55327028]
[1752929853835,0.51186845,118240.0,118230.0,0.55538028]
[1752929859222,0.51186845,118240.0,118230.0,0.55327028]
[1752929861218,0.51186845,118240.0,118230.0,0.55538028]
[1752929862659,0.18727749,118240.0,118230.0,0.55832028]
[1752929862893,0.49636845,118240.0,118230.0,0.55832028]
[1752929864563,0.18727749,118240.0,118230.0,0.55832028]
[1752929864722,0.49636845,118240.0,118230.0,0.55832028]
[1752929879371,0.51246845,118240.0,118230.0,0.55534028]
[1752929879597,0.51246845,118240.0,118230.0,0.42383028]
[1752929879816,0.66998393,118240.0,118230.0,0.55323028]
[1752929880056,0.66998393,118240.0,118230.0,0.42383028]
[1752929880295,0.79938393,118240.0,118230.0,0.33832]
[1752929880528,0.79938393,118240.0,118230.0,0.46772]
[1752929880761,0.82476893,118240.0,118230.0,0.46772]
[1752929880981,1.16476893,118240.0,118230.0,0.33832]
[1752929881199,1.16476893,118240.0,118230.0,0.46772]
[1752929882972,1.16476893,118240.0,118230.0,0.33832]
[1752929901167,1.16179893,118240.0,118230.0,0.33832]
[1752929930513,1.14569893,118240.0,118230.0,0.34358]
[1752929931995,1.14569893,118240.0,118230.0,0.34046]
[1752929933282,0.68206249,118240.0,118230.0,0.34046]
[1752929933503,1.14569893,118240.0,118230.0,0.34046]
[1752929936043,1.14569893,118240.0,118230.0,0.34358]
[1752929938432,0.99816893,118240.0,118230.0,0.34358]
[1752929938643,0.94755845,118240.0,118230.0,0.46059028]
[1752929939487,1.10210393,118240.0,118230.0,0.46059028]
[1752929940360,1.10210393,118240.0,118230.0,0.44549028]
[1752929940582,0.97278393,118240.0,118230.0,0.44549028]
[1752929940782,1.10210393,118240.0,118230.0,0.44549028]
[1752929942393,0.94755845,118240.0,118230.0,0.44549028]
[1752929943346,0.94755845,118240.0,118230.0,0.46129028]
[1752929944625,0.81823845,118240.0,118230.0,0.46129028]
[1752929950057,0.81823845,118240.0,118230.0,0.44549028]
[1752929950860,0.81823845,118240.0,118230.0,0.42909028]
[1752929952994,0.94755845,118240.0,118230.0,0.42909028]
[1752929954767,0.94755845,118240.0,118230.0,0.44429028]
[1752929956306,0.94755845,118240.0,118230.0,0.42909028]
[1752929959216,0.94755845,118240.0,118230.0,0.44419028]
[1752929962670,0.94755845,118240.0,118230.0,0.42909028]
[1752929965118,0.81823845,118240.0,118230.0,0.42909028]
[1752929971155,0.94751845,118240.0,118230.0,0.44459028]
[1752929972721,0.16914749,118240.0,118230.0,0.46119028]
[1752929972941,0.47823845,118240.0,118230.0,0.46119028]
[1752929984983,0.32369297,118240.0,118230.0,0.46119028]
[1752929989503,0.16914749,118240.0,118230.0,0.46119028]
[1752929989712,0.32369297,118240.0,118230.0,0.46119028]
[1752929990040,0.16914749,118240.0,118230.0,0.46119028]
[1752929990241,0.18606187,118240.0,118230.0,0.61573576]
[1752929990666,0.18606187,118240.0,118230.0,0.46119028]
[1752929991209,0.00845687,118240.0,118230.0,0.46119028]
[1752929991412,0.20297583,118240.0,118230.0,0.46119028]
[1752929992266,0.3406075,118240.0,118230.0,0.46119028]
[1752929992749,0.33215034,118240.0,118230.0,0.46119028]
[1752929992952,0.17760486,118240.0,118230.0,0.46119028]
[1752929993163,0.33215034,118240.0,118230.0,0.46119028]
[1752929994658,0.32369297,118240.0,118230.0,0.46119028]
[1752930000438,0.16914749,118240.0,118230.0,0.46119028]
[1752930000642,0.32369297,118240.0,118230.0,0.46119028]
[1752930004986,0.48025845,118240.0,118230.0,0.42909028]
[1752930005199,0.48025845,118240.0,118230.0,0.55825028]
[1752930005560,0.17116749,118240.0,118230.0,0.55825028]
[1752930005794,0.49655845,118240.0,118230.0,0.42909028]
[1752930006131,0.49655845,118240.0,118230.0,0.55825028]
[1752930006347,0.34201297,118240.0,118230.0,0.55825028]
[1752930006549,0.49655845,118240.0,118230.0,0.55825028]
[1752930006760,0.32571297,118240.0,118230.0,0.55825028]
[1752930006967,0.32369297,118240.0,118230.0,0.55825028]
[1752930014658,0.49323845,118240.0,118230.0,0.55825028]
[1752930014870,0.32369297,118240.0,118230.0,0.55825028]
[1752930019567,0.32571297,118240.0,118230.0,0.55825028]
[1752930019831,0.17116749,118240.0,118230.0,0.55825028]
[1752930020143,0.32571297,118240.0,118230.0,0.55825028]
[1752930020488,0.17116749,118240.0,118230.0,0.55825028]
[1752930020693,0.32369297,118240.0,118230.0,0.55825028]
[1752930021550,0.47823845,118240.0,118230.0,0.55825028]
[1752930021989,0.48032845,118240.0,118230.0,0.55825028]
[1752930022438,0.47823845,118240.0,118230.0,0.55825028]
[1752930023293,0.32369297,118240.0,118230.0,0.55825028]
[1752930023982,0.16914749,118240.0,118230.0,0.55825028]
[1752930024226,0.32369297,118240.0,118230.0,0.55825028]
[1752930033768,0.47823845,118240.0,118230.0,0.55825028]
[1752930035843,0.32369297,118240.0,118230.0,0.55825028]
[1752930037754,0.16914749,118240.0,118230.0,0.55825028]
[1752930037968,0.32369297,118240.0,118230.0,0.55825028]
[1752930040445,0.47823845,118240.0,118230.0,0.55825028]
[1752930053626,0.32369297,118240.0,118230.0,0.55825028]
[1752930056101,0.47823845,118240.0,118230.0,0.55825028]
[1752930058907,0.16914749,118240.0,118230.0,0.55825028]
[1752930059115,0.47823845,118240.0,118230.0,0.55825028]
[1752930060038,0.49576845,118240.0,118230.0,0.42909028]
[1752930060251,0.51518845,118240.0,118230.0,0.55287028]
[1752930060963,0.51518845,118240.0,118230.0,0.42383028]
[1752930061186,0.51518845,118240.0,118230.0,0.55287028]
[1752930062284,0.51518845,118240.0,118230.0,0.42383028]
[1752930062502,0.51518845,118240.0,118230.0,0.55287028]
[1752930062662,0.51518845,118240.0,118230.0,0.42383028]
[1752930062874,0.51518845,118240.0,118230.0,0.55287028]
[1752930063069,0.51518845,118240.0,118230.0,0.42383028]
[1752930063447,0.51518845,118240.0,118230.0,0.55287028]
[1752930064105,0.51518845,118240.0,118230.0,0.42383028]
[1752930064322,0.51518845,118240.0,118230.0,0.55287028]
[1752930065161,0.20609749,118240.0,118230.0,0.55287028]
[1752930065352,0.51518845,118240.0,118230.0,0.55287028]
[1752930066010,0.51518845,118240.0,118230.0,0.42383028]
[1752930066286,0.51518845,118240.0,118230.0,0.55287028]
[1752930070135,0.51196845,118240.0,118230.0,0.55287028]
[1752930083817,0.49576845,118240.0,118230.0,0.55780028]
[1752930089894,0.18667749,118240.0,118230.0,0.55780028]
[1752930090184,0.49576845,118240.0,118230.0,0.55780028]
[1752930092657,0.49576845,118240.0,118230.0,0.55776028]
[1752930095110,0.49576845,118240.0,118230.0,0.42876028]
[1752930095318,0.49576845,118240.0,118230.0,0.55776028]
[1752930095873,0.18667749,118240.0,118230.0,0.55776028]
[1752930096096,0.49576845,118240.0,118230.0,0.55776028]
[1752930097983,0.48036845,118240.0,118230.0,0.55776028]
[1752930099630,0.49686845,118240.0,118230.0,0.55776028]
[1752930101085,0.49686845,118240.0,118230.0,0.55479028]
[1752930101906,0.49686845,118240.0,118230.0,0.55776028]
[1752930103833,0.49686845,118240.0,118230.0,0.42876028]
[1752930104086,0.49686845,118240.0,118230.0,0.55776028]
[1752930108965,0.48036845,118240.0,118230.0,0.55776028]
[1752930111377,0.17127749,118240.0,118230.0,0.55776028]
[1752930111594,0.48036845,118240.0,118230.0,0.55776028]
[1752930113634,0.48036845,118240.0,118230.0,0.42876028]
[1752930113853,0.48036845,118240.0,118230.0,0.55772028]
[1752930114272,0.49586845,118240.0,118230.0,0.55772028]
[1752930122247,0.48036845,118240.0,118230.0,0.55772028]
[1752930127780,0.48036845,118240.0,118230.0,0.55768028]
[1752930132445,0.49596845,118240.0,118230.0,0.55768028]
[1752930133178,0.18687749,118240.0,118230.0,0.55768028]
[1752930133386,0.48036845,118240.0,118230.0,0.55768028]
[1752930138042,0.32369297,118240.0,118230.0,0.55768028]
[1752930138263,0.32369297,118240.0,118230.0,0.57358028]
[1752930138717,0.32369297,118240.0,118230.0,0.74392576]
[1752930138718,0.16914749,118240.0,118230.0,0.74392576]
[1752930140670,0.16914749,118240.0,118230.0,0.58938028]
[1752930144373,0.32369297,118240.0,118230.0,0.58938028]
[1752930146529,0.16914749,118240.0,118230.0,0.58938028]
[1752930146740,0.32369297,118240.0,118230.0,0.58938028]
[1752930154148,0.16914749,118240.0,118230.0,0.58938028]
[1752930154329,0.32369297,118240.0,118230.0,0.58938028]
[1752930155071,0.32369297,118240.0,118230.0,0.58934028]
[1752930155289,0.16914749,118240.0,118230.0,0.58934028]
[1752930155498,0.32369297,118240.0,118230.0,0.58934028]
[1752930155923,0.16914749,118240.0,118230.0,0.58934028]
[1752930156096,0.32369297,118240.0,118230.0,0.58934028]
[1752930156348,0.16914749,118240.0,118230.0,0.58934028]
[1752930156530,0.32369297,118240.0,118230.0,0.58934028]
[1752930159502,0.16914749,118240.0,118230.0,0.58934028]
[1752930159872,0.16914749,118240.0,118230.0,0.74388576]
[1752930160213,0.15593749,118240.0,118230.0,0.74388576]
[1752930163670,0.15593749,118240.0,118230.0,0.76948906]
[1752930171803,0.01691439,118240.0,118230.0,0.76948906]
[1752930172005,0.02537133,118240.0,118230.0,0.76948906]
[1752930172211,0.02537075,118240.0,118230.0,0.76948906]
[1752930172426,0.02537083,118240.0,118230.0,0.76948906]
[1752930173504,0.02537075,118240.0,118230.0,0.76948906]
[1752930174388,0.01691367,118240.0,118230.0,0.76948906]
[1752930174600,0.02537075,118240.0,118230.0,0.76948906]
[1752930175725,0.02537083,118240.0,118230.0,0.76948906]
[1752930175949,0.02537075,118240.0,118230.0,0.76948906]
[1752930176422,0.01691367,118240.0,118230.0,0.76948906]
[1752930177470,0.02537068,118240.0,118230.0,0.76948906]
[1752930177708,0.03382776,118240.0,118230.0,0.76948906]